Cogmind - Beta 13 @@@ ROGUE MODE // 2024.04.02 @ 10:22:18 Player: DeluxeH30 Result: Destroyed by G-34 Mercenary with Small Laser Performance ------------- Evolutions (1) 500 Regions Visited (2) 400 Robots Destroyed (24) 120 Value Destroyed (418) 418 Prototype IDs (1) 20 Alien Tech Used (0) 0 Bonus (0) 0 TOTAL SCORE: 1458 Bonus ------- None Cogmind --------- Core Integrity 0/400 Matter 63/300 Energy 115/250 System Corruption 0% Temperature Cool (6) Movement Hovering (120) Ox1 Location -9/Materials Parts ------- > --- POWER (1) -------- Ion Engine > --- PROPULSION (4) --- Hover Unit > --- UTILITY (2) ------ Improved Heat Sink > --- WEAPON (2) ------- Hammer > --- INVENTORY (5) ---- Light Cannon Light Cannon Mini Grenade Launcher Datajack Peak State ------------ > --- POWER ------------ Ion Engine > --- PROPULSION ------- Light Treads Light Treads > --- UTILITY ---------- Large Storage Unit Sensor Array > --- WEAPON ----------- Improved Medium Laser Mini Grenade Launcher > --- INVENTORY -------- Ion Engine Light Ion Engine Improved Heat Sink Terrain Scan Processor Light Cannon Light Cannon Grenade Launcher Mini Grenade Launcher Datajack Hammer [Rating: 11] Favorites ----------- Power Ion Engine Engine Ion Engine Propulsion Light Treads Treads Light Treads Hover Unit Hover Unit Flight Unit Flight Unit Utility Large Storage Unit Device Sensor Array Storage Large Storage Unit Processor Terrain Scan Processor Protection Weapon Shielding Weapon Light Assault Rifle Energy Gun EM Pulse Gun Ballistic Gun Light Assault Rifle Ballistic Cannon Light Cannon Launcher Mini Grenade Launcher Impact Weapon Hammer Build | -11 -10 -9 ------- Run | Yrd Mat Mat Slots Evolved 2 | . . 2 Power . | . . . Propulsion 2 | . . 2 Utility . | . . . Weapon . | . . . Parts Attached 34 | 7 11 16 Power 5 | 1 2 2 Engine 5 | 1 2 2 Core . | . . . Reactor . | . . . Propulsion 6 | 2 1 3 Treads 3 | 2 1 . Leg . | . . . Wheel . | . . . Hover 2 | . . 2 Flight 1 | . . 1 Utility 6 | 1 2 3 Device 2 | . . 2 Storage 2 | 1 1 . Processor 1 | . . 1 Hackware . | . . . Protection 1 | . 1 . Artifact . | . . . Weapon 17 | 3 6 8 Energy Gun 3 | 1 1 1 Energy Cannon . | . . . Ballistic Gun 3 | 2 1 . Ballistic Cannon 4 | . 2 2 Launcher 4 | . . 4 Special Weapon . | . . . Impact Weapon 3 | . 2 1 Slashing Weapon . | . . . Piercing Weapon . | . . . Special Melee Weapon . | . . . Unidentified Prototypes 1 | . . 1 Parts Lost 11 | . 2 9 Power 3 | . 1 2 Propulsion 3 | . 1 2 Utility 2 | . . 2 Weapon 3 | . . 3 Highest Loss Streak 5 | . 1 5 To Critical Strikes . | . . . Average Slot Usage (%) 80 | . 89 53 Engine 11 | . 13 6 Treads 19 | . 23 8 Device 1 | . . 4 Storage 13 | . 14 10 Protection 6 | . 8 . Ballistic Gun 11 | . 15 . Ballistic Cannon 7 | . 8 3 Launcher 1 | . . 6 Impact Weapon 3 | . 2 8 Naked Turns . | . . . Heaviest Build 32 | 13 32 31 Greatest Support 40 | 40 40 40 Greatest Overweight (x) 9 | . 1 9 Average Overweight (x) . | . . 2 Largest Inventory Capacity 15 | 8 15 15 Average Capacity 13 | 6 14 14 Most Carried 12 | 4 12 12 Average Carried 6 | 1 7 7 Final Capacity 15 | 8 15 5 Final Carried 12 | 2 12 4 Class Distribution -------------------- 100% | Mutant Dominant Class ---------------- Mutant | -10/Materials Mutant | -9/Materials Resources | -11 -10 -9 ----------- Run | Yrd Mat Mat Matter Collected 667 | 137 372 158 Remotely . | . . . Salvage Created 763 | . 502 261 Parts 37 | . 20 17 Haulers Intercepted 1 | . 1 . Recyclers Shooed 5 | . 4 1 Parts Field Recycled . | . . . Retrieved Matter . | . . . Parts Self-Destructed . | . . . Prevented . | . . . Kills | -11 -10 -9 ------- Run | Yrd Mat Mat Combat Hostiles Destroyed 10 | . 3 7 Guns 3 | . 3 . AOE 6 | . . 6 Classes Destroyed 9 | . 5 4 Worker 4 | . 4 . Builder 3 | . 1 2 Tunneler 1 | . . 1 Hauler 1 | . 1 . Recycler 4 | . 3 1 Watcher 1 | . . 1 Swarmer 2 | . . 2 Grunt 6 | . 3 3 Sentry 2 | . . 2 Best Kill Streak 4 | . 4 4 Combat Bots Only 4 | . 1 4 Max Kills in Single Turn 3 | . 1 3 Gunslinging . | . . . Exploded 3 | . . 3 Melee . | . . . Uniques/NPCs Destroyed . | . . . Combat | -11 -10 -9 -------- Run | Yrd Mat Mat Hostile Shots Fired 233 | . 63 170 Missed 68 | . 21 47 Damage Taken 1836 | . 541 1295 Core 467 | . 59 408 Absorbed by Shields . | . . . Redirected to Shielding 18 | . 18 . Core Remaining (%) 88 | 100 76 . Volleys Fired 88 | . 72 16 Largest 2 | . 2 2 Hottest 70 | . 70 60 Shots Fired 161 | . 141 20 Gun 107 | . 107 . Cannon 41 | . 34 7 Launcher 13 | . . 13 Special . | . . . Kinetic 142 | . 135 7 Thermal . | . . . Explosive 13 | . . 13 Electromagnetic 6 | . 6 . Robot Hit Streak 13 | . 13 3 Robot Miss Streak 7 | . 7 1 Penetration Max . | . . . Secondary Targets . | . . . Shots Hit Robots 82 | . 68 14 Core Hits 41 | . 22 19 Critical Kills 1 | . 1 . Critical Parts Destroyed 1 | . . 1 Critical Strikes 3 | . 2 1 Destroy 1 | . 1 . Blast 1 | . 1 . Smash 1 | . . 1 Melee Attacks 7 | . 1 6 Impact 7 | . 1 6 Slashing . | . . . Piercing . | . . . Sneak Attacks 3 | . 1 2 Combat Hostiles . | . . . Follow-up Attacks . | . . . Damage Inflicted 1816 | . 784 1032 Guns 480 | . 480 . Cannons 297 | . 232 65 Explosions 818 | . . 818 Melee 221 | . 72 149 Ramming . | . . . Kinetic 749 | . 684 65 Thermal . | . . . Explosive 818 | . . 818 Electromagnetic 28 | . 28 . Impact 221 | . 72 149 Slashing . | . . . Piercing . | . . . Highest Corruption . | . . . Average Corruption . | . . . Corruption Purged . | . . . Corruption Blocked . | . . . Overload Shots . | . . . Overflow Damage 110 | . 46 64 Projectiles 14 | . 14 . Explosions 3 | . . 3 Melee 93 | . 32 61 Knockbacks 5 | . 5 . Impact 1 | . 1 . Kinetic 3 | . 3 . Secondary 1 | . 1 . Self-Inflicted Damage 174 | . . 174 Shots 5 | . . 5 Rammed . | . . . Targets Rammed . | . . . Kicked . | . . . Crushed . | . . . Highest Temperature 67 | . 67 6 Average Temperature 15 | . 16 4 Received Heat Transfer 459 | . 309 150 Siege Activations . | . . . Robots Corrupted . | . . . Combat Hostiles . | . . . Parts Fried 3 | . . 3 Impact Corruptions 4 | . 1 3 Robots Melted . | . . . Combat Hostiles . | . . . Parts Melted . | . . . Heat Transferred . | . . . Parts Sabotaged . | . . . Parts Stolen . | . . . Parts Stripped . | . . . Power Chain Reactions . | . . . Alert | -11 -10 -9 ------- Run | Yrd Mat Mat Peak Influence 229 | . 135 229 Initial 26 | . . 26 Average 62 | . 48 128 Maximum Alert Level 1 | . . 1 Low Security (%) 94 | 100 100 74 Level 1 5 | . . 25 Level 2 . | . . . Level 3 . | . . . Level 4 . | . . . Level 5 . | . . . High Security . | . . . Max Security . | . . . Squads Dispatched 1 | . 1 . Investigation 1 | . 1 . Extermination . | . . . Reinforcement . | . . . Assault . | . . . Garrison . | . . . Intercept . | . . . Searches Triggered . | . . . Construction Impeded . | . . . Haulers Reinforced . | . . . Active Scanning Responses . | . . . Cargo Convoy Interrupts . | . . . Stealth | -11 -10 -9 --------- Run | Yrd Mat Mat Distress Signals 3 | . 1 2 Communications Jammed . | . . . Distress Signals . | . . . Times Spotted 28 | . 15 13 Peak Tracking Total 5 | . 4 5 Tactical Retreats 1 | . 1 . Traps | -11 -10 -9 ------- Run | Yrd Mat Mat Traps Triggered 1 | . 1 . Indirectly . | . . . Trap Hack Attempts . | . . . Triggered . | . . . Disarmed . | . . . Reprogrammed . | . . . Reused . | . . . Traps Extracted . | . . . Installed . | . . . Triggered . | . . . Machines | -11 -10 -9 ---------- Run | Yrd Mat Mat Machines Disabled 1 | . 1 . Max in Single Turn 1 | . 1 . Machines Repaired . | . . . Machines Dismantled . | . . . Machines Sabotaged . | . . . Overloaded Fab Kills . | . . . Hacking | -11 -10 -9 --------- Run | Yrd Mat Mat Machines Accessed 3 | . 3 . Terminals 1 | . 1 . Fabricators . | . . . Repair Stations . | . . . Recycling Units 2 | . 2 . Scanalyzers . | . . . Garrison Access . | . . . Total Hacks 9 | . 9 . Successful 2 | . 2 . Failed 7 | . 7 . Catastrophic . | . . . Database Lockouts . | . . . Manual 1 | . 1 . Terminals 2 | . 2 . Fabricators . | . . . Repair Stations . | . . . Recycling Units 7 | . 7 . Scanalyzers . | . . . Garrison Access . | . . . Terminal Hacks 1 | . 1 . Zone Layout 1 | . 1 . Fabricator Hacks . | . . . Repair Station Hacks . | . . . Recycling Unit Hacks 1 | . 1 . Report Inventory 1 | . 1 . Scanalyzer . | . . . Garrison Access Hacks . | . . . Unauthorized Hacks . | . . . Terminals . | . . . Fabricators . | . . . Repair Stations . | . . . Recycling Units . | . . . Scanalyzers . | . . . Garrison Access . | . . . Data Cores Recovered . | . . . Used . | . . . Hacking Detections 2 | . 2 . Full Trace Events 1 | . 1 . Feedback Events . | . . . Feedback Blocked . | . . . Robot Schematics Acquired . | . . . Robots Built . | . . . Authchips . | . . . Time . | . . . Total Robot Build Rating . | . . . Part Schematics Acquired . | . . . Parts Built . | . . . Authchips . | . . . Time . | . . . Total Part Build Rating . | . . . Parts Repaired . | . . . Time . | . . . Parts Recycled . | . . . Recycled Matter . | . . . Retrieved Matter . | . . . Retrieved Components . | . . . Parts Scanalyzed . | . . . Part Schematics Acquired . | . . . Parts Damaged . | . . . Bothacking | -11 -10 -9 ------------ Run | Yrd Mat Mat Used RIF Installer . | . . . Robots Hacked . | . . . Non-combat . | . . . Combat . | . . . Robot Hacks Applied . | . . . Relay Couplers Released . | . . . Fabnet Peak Effective % . | . . . Robots Rewired . | . . . Allies Hacked . | . . . Hacks Repelled . | . . . Allies | -11 -10 -9 -------- Run | Yrd Mat Mat Total Allies . | . . . Largest Group . | . . . Highest-Rated Group . | . . . Highest-Rated Ally . | . . . Total Orders . | . . . Ally Attacks . | . . . Total Damage . | . . . Kills . | . . . Allies Corrupted . | . . . Allies Melted . | . . . Intel | -11 -10 -9 ------- Run | Yrd Mat Mat Robot Analysis Total . | . . . Derelict Logs Recovered . | . . . Drone Launches . | . . . Drone Recoveries . | . . . Exploration | -11 -10 -9 ------------- Run | Yrd Mat Mat Turns Passed 977 | 87 661 229 Spaces Moved 344 | 48 238 58 Core 22 | 6 . 16 Treads 316 | 42 238 36 Legs . | . . . Wheels . | . . . Hover . | . . . Flight 6 | . . 6 Fastest Speed 50 | 50 160 150 Average Speed 184 | 146 177 244 Slowest Speed 500 | 160 240 500 Overloaded Moves . | . . . Propulsion Burnouts . | . . . Robots Hopped . | . . . Cave-ins Triggered . | . . . Exploration Rate (%) 16 | 3 38 7 Regions Visited 2 Branch Regions . Pre-discovered Areas . | . . . Known Exits Taken . | . . . Unknown Exits Taken 2 | 1 1 . Scrap Searched . | . . . Spaces Dug . | . . . Terrain Destroyed 87 | . . 87 Melee . | . . . Projectile . | . . . AOE 87 | . . 87 Terrain Rammed . | . . . Walls Destroyed . | . . . Machines Disabled . | . . . Actions | -11 -10 -9 --------- Run | Yrd Mat Mat Total 536 | 64 353 119 Wait 6 | 2 4 . Move 342 | 47 237 58 Hop . | . . . Pick Up 38 | 8 20 10 Fast Attach 1 | . 1 . Attach 20 | 6 3 11 Detach 1 | . . 1 Swap 13 | 1 7 5 Drop 20 | . 8 12 Fire 88 | . 72 16 Melee 7 | . 1 6 Ram . | . . . Kick . | . . . Crush . | . . . Escape Stasis . | . . . Rewire . | . . . Trap . | . . . Miscellaneous . | . . . Route ------- -11/Scrapyard -10/Materials (discovered 2 exits: [*Mat] / [*Min]) -9/Materials History --------- Turn | Location | Event 13 | -11/Scrapyard | Discovered new exit (range 15) 88 | -11/Scrapyard | Entered Materials 112 | -10/Materials | Discovered new exit (range 13) 316 | -10/Materials | Build established: Mutant 669 | -10/Materials | Discovered new exit (range 15) 749 | -10/Materials | Entered another Materials area 749 | -9/Materials | Evolved 2 slots: Propulsion x2 875 | -9/Materials | Core integrity fell below 50% 877 | -9/Materials | Lost 5 parts (1p2n1u1w) 905 | -9/Materials | Core integrity fell below 20% 953 | -9/Materials | Lost 4 parts (1p1u2w) 978 | -9/Materials | Destroyed by G-34 Mercenary with Small Laser Last Messages --------------- 00961_ U-05 Engineer builds a Wall. 00961_ U-05 Engineer lays Concrete. 00962_ U-05 Engineer builds a Wall. 00962_ U-05 Engineer lays Concrete. 00965_ U-05 Engineer builds a Wall. 00965_ U-05 Engineer lays Concrete. 00966_ Acquired Corrupted Lgt. Ion Engine. 00966_ U-05 Engineer lays Concrete. 00966_ U-05 Engineer builds a Wall. 00967_ U-05 Engineer lays Concrete. 00968_ U-05 Engineer builds a Wall. 00968_ Dropped Corrupted Lgt. Ion Engine. 00968_ U-05 Engineer lays Concrete. 00969_ Dropped Lrg. Storage Unit. 00970_ Dropped Flight Unit. 00970_ U-05 Engineer lays Concrete. 00973_ U-05 Engineer builds a Wall. 00976_ Acquired 68 matter. 00977_ U-05 Engineer lays Concrete. 00978_ The unstable cave ceiling collapses. Map ----- +----------------------------------------------------+ | ?????????????????????????????????????????????????? | | ?????????????????????????????????????????????????? | | ?????????????????????????????????????????????????? | | ?????????????????????????????????????????????????? | | ??????????????????????#####??????????????????????? | | ??????????????????????# #??????????????????????? | | ??????????????????????# #??????????????????????? | | ??????????????????????# #??????????????????????? | | ??????????????????????+ ##########+##??????????? | | ??????????????????????# ?????????? | | ??????????????????????# ?????????? | | ??????????????????????# ?????????? | | ??????????????????????# ############??????? | | ?????????????????????## [ #?# #??????? | | ????????????#????????# ]!] #?# [ """ #??????? | | ????????????# ?????## ! ### """ #??????? | | ????????????# ##### ] # """ #??????? | | ????????????# ! + #??????? | | ????????????# ### # # = """ #??????? | | ????????????#??????##### !####### """ #??????? | | ?????????????????### ## =*# #???# """ #??????? | | ?????????????????# # u # #???# #??????? | | ?????????????????# # # #???##########??????? | | ?????????????????+ #* #! #??????????????????? | | ?????????????????# # # ##??????????????????? | | ?????????????????##### #[@g# #???????????????????? | | ??????????????????? # # #???????????????????? | | ????????????????? # # u # #???????????????????? | | ??????????????? ##### ###???????????????????? | | ?????????????? %% a#?????????????????????? | | ?????????????? % g #?????????????????????? | | ????????????? " #?????????????????????? | | ?????????????? "% # ### #?????????????????????? | | ?????????????? " # #?????????????????????? | | ????????????????#### # # +?????????????????????? | | ??????????????????? ## #?????????????????????? | | ????????????????????? ?# #?????????????????????? | | ???????????????????????# #?????????????????????? | | ???????????????????????? % ??????????????????????? | | ???????????????????????? ??????????????????????? | | ???????????????????????? ??????????????????????? | | ?????????????????????????????????????????????????? | | ?????????????????????????????????????????????????? | | ?????????????????????????????????????????????????? | | ?????????????????????????????????????????????????? | | ?????????????????????????????????????????????????? | | ?????????????????????????????????????????????????? | | ?????????????????????????????????????????????????? | | ?????????????????????????????????????????????????? | | ?????????????????????????????????????????????????? | +----------------------------------------------------+ Best States ------------- Heat Dissipation 42 Energy Generation 10 Energy Capacity 250 Matter Stores 196 Matter Capacity 300 Sight Range 16 Robot Scan Range 14 Terrain Scan Density 85 Weapon Shielding 33 Evasion (%) 50 Recoil Reduction 2 Item Schematics ----------------- None Robot Schematics ------------------ None Fabricated ------------ Nothing Alien Tech Used ----------------- None Achievements -------------- None Challenges ------------ None Game ------ Seed MassTransportLoader Manual? 0 Play Time 00:14:20 Cumulative 12.9 hours Start 2024.04.02 @ 10:10:02 End 2024.04.02 @ 10:22:18 Sessions 1 Manual Loads 0 Difficulty Rogue Special Mode None Game No. 19 Rogue 19 Adventurer 0 Explorer 0 Win Type - Total 0 Types 0/0/0/0/0/0/0/0/0 Lore% 9 Gallery% 18 Achievement% 14 Wizard Run 0 Options --------- Layout 0 ASCII 0 Keyboard 0 Movement Mouse Keybinds 0 Fullscreen 2 Font 24/Smallcaps Map View 76x50 Zoom Use 0% Tactical HUD 1 Map Filters NONE Filters NONE Steam 1 RUN: 146109cd-e41e-45c2-89f2-6f136e650b2e